fUST/lending_fUST_20251004
["ID","MTS","AMOUNT","RATE_DAILY","PERIOD"]
[388974432,1759552253562,-500.0,0.00024931,9]
[388974433,1759552253571,-500.0,0.00024931,9]
[388974434,1759552253580,-500.0,0.00024931,9]
[388974435,1759552253590,-442.58893206,0.00024931,9]
[388974436,1759552253600,-500.0,0.00024931,9]
[388974437,1759552253609,-500.0,0.00024931,9]
[388974438,1759552253618,-829.33,0.00024931,9]
[388974439,1759552253627,-780.57,0.00024931,9]
[388974440,1759552253637,-449.92047982,0.00024931,9]
[388974441,1759552253646,-241.57,0.00024931,9]
[388974442,1759552253655,-706.77,0.00024931,9]
[388974443,1759552253665,-500.0,0.00024931,9]
[388974444,1759552253674,-500.0,0.00024931,9]
[388974445,1759552253683,-500.0,0.00024931,9]
[388974446,1759552253692,-500.0,0.00024931,9]
[388974447,1759552253701,-637.17,0.00024931,9]
[388974448,1759552253711,-314.05639213,0.00024931,9]
[388974449,1759552253720,-500.0,0.00024931,9]
[388974450,1759552253731,-779.32,0.00024931,9]
[388974451,1759552253740,-500.0,0.00024931,9]
[388974452,1759552253750,-265.32370453,0.00024931,9]
[388974453,1759552253760,-500.0,0.00024931,9]
[388974454,1759552253769,-500.0,0.00024931,9]
[388974455,1759552253779,-500.0,0.00024931,9]
[388974456,1759552253789,-500.0,0.00024931,9]
[388974457,1759552253798,-500.0,0.00024931,9]
[388974458,1759552253808,-1027.39,0.00024931,9]
[388974459,1759552253818,-760.18,0.00024931,9]
[388974460,1759552253827,-500.0,0.00024931,9]
[388974461,1759552253836,-500.0,0.00024931,9]
[388974462,1759552253846,-500.0,0.00024931,9]
[388974463,1759552253856,-500.0,0.00024931,9]
[388974464,1759552253865,-1038.2,0.00024931,9]
[388974465,1759552253875,-500.0,0.00024931,9]
[388974466,1759552253884,-3037.25,0.00024931,9]
[388974467,1759552253893,-618.42,0.00024931,9]
[388974468,1759552253903,-500.0,0.00024931,9]
[388974469,1759552253912,-500.0,0.00024931,9]
[388974470,1759552253922,-500.0025405,0.00024931,9]
[388974471,1759552253931,-600.14365041,0.00024931,9]
[388974472,1759552253940,-406.22132863,0.00024931,9]
[388974473,1759552253950,-500.0,0.00024931,9]
[388974474,1759552253960,-500.0,0.00024931,9]
[388974475,1759552253970,-500.0,0.00024931,9]
[388974476,1759552253979,-500.0,0.00024931,9]
[388974477,1759552253989,-500.0,0.00024931,9]
[388974478,1759552253999,-500.0,0.00024931,9]
[388974479,1759552254008,-500.0,0.00024931,9]
[388974480,1759552254018,-500.0,0.00024931,9]
[388974481,1759552254027,-500.0,0.00024931,9]
[388974482,1759552254209,-500.0,0.00024931,9]
[388974483,1759552254219,-1680.35,0.00024931,9]
[388974484,1759552254229,-500.0,0.00024931,9]
[388974485,1759552254238,-500.0,0.00024931,9]
[388974486,1759552254248,-463.70750239,0.00024931,9]
[388974487,1759552254257,-500.0,0.00024931,9]
[388974488,1759552254267,-500.0,0.00024931,9]
[388974489,1759552254276,-500.0,0.00024931,9]
[388974490,1759552254286,-500.0,0.00024931,9]
[388974491,1759552254295,-500.0,0.00024931,9]
[388974492,1759552254305,-500.0,0.00024931,9]
[388974493,1759552254314,-500.0,0.00024931,9]
[388974494,1759552254323,-500.0,0.00024931,9]
[388974495,1759552254333,-447.22815829,0.00024931,9]
[388974496,1759552254342,-500.0,0.00024931,9]
[388974497,1759552254351,-500.0,0.00024931,9]
[388974498,1759552254360,-500.0,0.00024931,9]
[388974499,1759552254369,-500.0,0.00024931,9]
[388974500,1759552254380,-500.0,0.00024931,9]
[388974501,1759552254389,-599.93,0.00024931,9]
[388974502,1759552254398,-500.0,0.00024931,9]
[388974503,1759552254407,-629.83,0.00024931,9]
[388974504,1759552254416,-500.0,0.00024931,9]
[388974505,1759552254426,-450.20832156,0.00024931,9]
[388974506,1759552254435,-500.0,0.00024931,9]
[388974507,1759552254444,-543.44,0.00024931,9]
[388974508,1759552254453,-500.0,0.00024931,9]
[388974509,1759552254462,-500.0,0.00024931,9]
[388974510,1759552254472,-500.0,0.00024931,9]
[388974511,1759552254482,-500.0,0.00024931,9]
[388974512,1759552254491,-735.17,0.00024931,9]
[388974513,1759552254500,-1524.89,0.00024931,9]
[388974514,1759552254510,-500.0,0.00024931,9]
[388974515,1759552254519,-500.0,0.00024931,9]
[388974516,1759552254528,-500.0,0.00024931,9]
[388974517,1759552254538,-500.0,0.00024931,9]
[388974518,1759552254547,-500.0,0.00024931,9]
[388974519,1759552254556,-500.0,0.00024931,9]
[388974520,1759552254566,-500.0,0.00024931,9]
[388974521,1759552254575,-359.86182584,0.00024931,9]
[388974522,1759552254585,-500.62941618,0.00024931,9]
[388974523,1759552254597,-500.0,0.00024931,9]
[388974524,1759552254607,-151.0,0.00024931,7]
[388974525,1759552254616,-151.0,0.00024931,7]
[388974526,1759552254626,-946.45,0.00024931,9]
[388974527,1759552254635,-151.0,0.00024931,7]
[388974528,1759552254644,-500.0,0.00024931,9]
[388974529,1759552254653,-534.54,0.00024931,9]
[388974530,1759552254663,-481.24751703,0.00024931,9]
[388974531,1759552254672,-151.0,0.00024931,7]
[388974532,1759552254682,-1422.55,0.00024931,9]
[388974533,1759552254692,-155.48752,0.00024931,7]
[388974534,1759552254701,-500.0,0.00024931,9]
[388974535,1759552254711,-500.0,0.00024931,9]
[388974536,1759552254721,-500.0,0.00024931,9]
[388974537,1759552254730,-500.0,0.00024931,9]
[388974538,1759552254739,-500.0,0.00024931,9]
[388974539,1759552254750,-500.0,0.00024931,9]
[388974540,1759552254759,-500.0,0.00024931,9]
[388974541,1759552254770,-500.0,0.00024931,9]
[388974542,1759552254780,-398.42588855,0.00024931,9]
[388974543,1759552254791,-641.68,0.00024931,9]
[388974544,1759552254800,-500.0,0.00024931,9]
[388974545,1759552254810,-384.72011386,0.00024931,9]
[388974546,1759552254819,-500.0,0.00024931,9]
[388974547,1759552254828,-4209.87,0.00024931,9]
[388974548,1759552254837,-500.0,0.00024931,9]
[388974549,1759552254846,-500.0,0.00024931,2]
[388974550,1759552254855,-657.32,0.00024931,9]
[388974551,1759552254865,-500.0,0.00024931,9]
[388974552,1759552254875,-500.0,0.00024931,9]
[388974553,1759552254884,-532.62,0.00024931,9]
[388974554,1759552254894,-500.0,0.00024931,9]
[388974555,1759552254903,-500.0,0.00024931,9]
[388974556,1759552254913,-1204.29,0.00024931,9]
[388974557,1759552255086,-500.0,0.00024931,9]
[388974558,1759552255096,-500.0,0.00024931,9]
[388974559,1759552255106,-500.0,0.00024931,9]
[388974560,1759552255117,-151.0,0.00024931,7]
[388974561,1759552255128,-151.0,0.00024931,7]
[388974562,1759552255137,-500.0,0.00024931,9]
[388974563,1759552255147,-500.0,0.00024931,9]
[388974564,1759552255156,-500.0,0.00024931,9]
[388974565,1759552255167,-500.0,0.00024931,9]
[388974566,1759552255177,-481.29372367,0.00024931,9]
[388974567,1759552255186,-500.0,0.00024931,9]
[388974568,1759552255195,-510.59,0.00024931,9]
[388974569,1759552255204,-500.0,0.00024931,9]
[388974570,1759552255213,-500.0,0.00024931,9]
[388974571,1759552255223,-500.0,0.00024931,9]
[388974572,1759552255231,-500.0,0.00024931,9]
[388974573,1759552255241,-677.47,0.00024931,9]
[388974574,1759552255250,-151.0,0.00024931,7]
[388974575,1759552255259,-151.0,0.00024931,7]
[388974576,1759552255269,-157.455924,0.00024931,7]
[388974577,1759552255278,-157.455924,0.00024931,7]
[388974578,1759552255287,-157.455924,0.00024931,7]
[388974579,1759552255296,-157.455924,0.00024931,7]
[388974580,1759552255306,-611.77,0.00024931,9]
[388974581,1759552255316,-500.0,0.00024931,9]
[388974582,1759552255326,-157.455924,0.00024931,7]
[388974583,1759552255336,-500.0,0.00024931,9]
[388974584,1759552255346,-157.455924,0.00024931,7]
[388974585,1759552255357,-157.455924,0.00024931,7]
[388974586,1759552255368,-157.455926,0.00024931,7]
[388974587,1759552255378,-500.0,0.00024931,9]
[388974588,1759552255388,-500.0,0.00024931,9]
[388974589,1759552255399,-895.86,0.00024931,9]
[388974590,1759552255411,-668.32,0.00024931,9]
[388974591,1759552255420,-500.0,0.00024931,9]
[388974592,1759552255430,-518.37,0.00024931,9]
[388974593,1759552255439,-500.0,0.00024931,9]
[388974594,1759552255450,-500.0,0.00024931,9]
[388974595,1759552255459,-500.0,0.00024931,9]
[388974596,1759552255470,-500.0,0.00024931,9]
[388974597,1759552255481,-1526.72,0.00024931,9]
[388974598,1759552255490,-1906.99,0.00024931,9]
[388974599,1759552255499,-790.39,0.00024931,9]
[388974600,1759552255508,-1000.0,0.00024931,9]
[388974601,1759552255517,-500.0,0.00024931,9]
[388974602,1759552255526,-514.89,0.00024931,9]
[388974603,1759552255535,-500.0,0.00024931,9]
[388974604,1759552255544,-500.0,0.00024931,9]
[388974605,1759552255553,-583.58,0.00024931,9]
[388974606,1759552255563,-500.0,0.00024931,9]
[388974607,1759552255573,-500.0,0.00024931,9]
[388974608,1759552255583,-500.0,0.00024931,9]
[388974609,1759552255593,-500.0,0.00024931,9]
[388974610,1759552255603,-965.58,0.00024931,9]
[388974611,1759552255615,-500.0,0.00024931,9]
[388974612,1759552255627,-500.0,0.00024931,9]
[388974613,1759552255638,-500.0,0.00024931,9]
[388974614,1759552255649,-500.0,0.00024931,9]
[388974615,1759552255661,-1198.5,0.00024931,9]
[388974616,1759552255670,-500.0,0.00024931,9]
[388974617,1759552255681,-1223.62,0.00024931,9]
[388974618,1759552255692,-500.0,0.00024931,9]
[388974619,1759552255703,-500.0,0.00024931,9]
[388974620,1759552255712,-449.3390189,0.00024931,9]
[388974621,1759552255721,-500.0,0.00024931,9]
[388974622,1759552255731,-500.0,0.00024931,9]
[388974623,1759552255740,-151.0,0.00024931,7]
[388974624,1759552255750,-152.813654,0.00024931,7]
[388974625,1759552255759,-500.0,0.00024931,9]
[388974626,1759552255768,-1455.18,0.00024931,9]
[388974627,1759552255777,-534.17,0.00024931,9]
[388974628,1759552255787,-500.0,0.00024931,9]
[388974629,1759552255797,-500.0,0.00024931,9]
[388974630,1759552255807,-151.0,0.00024931,7]
[388974631,1759552255817,-500.0,0.00024931,9]
[388974632,1759552255826,-151.0,0.00024931,7]
[388974633,1759552255836,-500.0,0.00024931,9]
[388974634,1759552255845,-151.0,0.00024931,7]
[388974635,1759552255855,-151.0,0.00024931,7]
[388974636,1759552255865,-847.75,0.00024931,9]
[388974637,1759552255875,-237.611807,0.00024931,7]
[388974638,1759552255885,-444.78827819,0.00024931,9]
[388974639,1759552255894,-483.1641991,0.00024931,9]
[388974640,1759552255904,-500.0,0.00024931,9]
[388974641,1759552255915,-151.0,0.00024931,7]
[388974642,1759552255924,-500.0,0.00024931,9]
[388974643,1759552255934,-500.0,0.00024931,9]
[388974644,1759552255943,-155.045436,0.00024931,7]
[388974645,1759552255953,-500.0,0.00024931,9]
[388974646,1759552255962,-861.7,0.00024931,9]
[388974647,1759552255972,-469.24445375,0.00024931,9]
[388974648,1759552255982,-500.0,0.00024931,9]
[388974649,1759552255991,-500.0,0.00024931,9]
[388974650,1759552256001,-1727.25,0.00024931,9]
[388974651,1759552256010,-1008.47,0.00024931,9]
[388974652,1759552256021,-500.0,0.00024931,9]
[388974653,1759552256031,-500.0,0.00024931,9]
[388974654,1759552256041,-500.0,0.00024931,9]
[388974655,1759552256050,-500.0,0.00024931,9]
[388974656,1759552256063,-500.0,0.00024931,9]
[388974657,1759552256073,-500.0,0.00024931,9]
[388974658,1759552256087,-500.0,0.00024931,9]
[388974659,1759552256099,-500.0,0.00024931,9]
[388974660,1759552256110,-518.69,0.00024931,9]
[388974661,1759552256121,-500.0,0.00024931,9]
[388974662,1759552256130,-500.0,0.00024931,9]
[388974663,1759552256141,-500.0,0.00024931,9]
[388974664,1759552256151,-863.41,0.00024931,9]
[388974665,1759552256160,-500.0,0.00024931,9]
[388974666,1759552256170,-500.0,0.00024931,9]
[388974667,1759552256179,-500.0,0.00024931,9]
[388974668,1759552256190,-2385.13,0.00024931,9]
[388974669,1759552256199,-500.0,0.00024931,9]
[388974670,1759552256209,-901.17,0.00024931,9]
[388974671,1759552256218,-500.0,0.00024931,9]
[388974672,1759552256226,-151.0,0.00024931,7]
[388974673,1759552256236,-500.0,0.00024931,9]
[388974674,1759552256245,-151.0,0.00024931,7]
[388974675,1759552256255,-500.0,0.00024931,9]
[388974676,1759552256264,-394.9443272,0.00024931,9]
[388974677,1759552256274,-500.0,0.00024931,9]
[388974678,1759552256283,-500.0,0.00024931,9]
[388974679,1759552256293,-500.0,0.00024931,9]
[388974680,1759552256303,-611.46586544,0.00024931,9]
[388974681,1759552256313,-1118.83,0.00024931,9]
[388974682,1759552256323,-638.65,0.00024931,9]
[388974683,1759552256332,-500.0,0.00024931,9]
[388974684,1759552256342,-500.0,0.00024931,9]
[388974685,1759552256351,-154.851904,0.00024931,7]
[388974686,1759552256360,-500.0,0.00024931,9]
[388974687,1759552256370,-500.0,0.00024931,9]
[388974688,1759552256380,-500.0,0.00024931,9]
[388974689,1759552256389,-1041.66666667,0.00024931,7]
[388974690,1759552256398,-778.44,0.00024931,9]
[388974691,1759552256408,-500.0,0.00024931,9]
[388974692,1759552256418,-924.33,0.00024931,9]
[388974693,1759552256427,-450.9684212,0.00024931,9]
[388974694,1759552256437,-1485.49,0.00024931,9]
[388974695,1759552256446,-1244.21,0.00024931,9]
[388974696,1759552256455,-151.0,0.00024931,7]
[388974697,1759552256465,-151.0,0.00024931,7]
[388974698,1759552256474,-480.09657904,0.00024931,9]
[388974699,1759552256484,-500.0,0.00024931,9]
[388974700,1759552256493,-151.0,0.00024931,7]
[388974701,1759552256502,-151.0,0.00024931,7]
[388974702,1759552256511,-500.0,0.00024931,9]
[388974703,1759552256521,-500.0,0.00024931,9]
[388974704,1759552256530,-500.0,0.00024931,9]
[388974705,1759552256539,-500.0,0.00024931,9]
[388974706,1759552256548,-500.0,0.00024931,9]
[388974707,1759552256558,-672.33,0.00024931,9]
[388974708,1759552256568,-500.0,0.00024931,9]
[388974709,1759552256577,-644.15,0.00024931,9]
[388974710,1759552256587,-500.0,0.00024931,9]
[388974711,1759552256596,-1260.08,0.00024931,9]
[388974712,1759552256606,-2917.92,0.00024931,9]
[388974713,1759552256615,-500.0,0.00024931,9]
[388974714,1759552256624,-151.0,0.00024931,7]
[388974715,1759552256634,-151.0,0.00024931,7]
[388974716,1759552256643,-1138.19,0.00024931,9]
[388974717,1759552256652,-298.269547,0.00024931,7]
[388974718,1759552256662,-151.0,0.00024931,7]
[388974719,1759552256671,-151.0,0.00024931,7]
[388974720,1759552256680,-151.0,0.00024931,7]
[388974721,1759552256690,-151.0,0.00024931,7]
[388974722,1759552256699,-151.0,0.00024931,7]
[388974723,1759552256708,-151.0,0.00024931,7]
[388974724,1759552256718,-462.10859374,0.00024931,9]
[388974725,1759552256727,-184.924051,0.00024931,7]
[388974726,1759552256736,-500.0,0.00024931,9]
[388974727,1759552256746,-448.44395797,0.00024931,9]
[388974728,1759552256756,-1055.73,0.00024931,9]
[388974729,1759552256765,-500.0,0.00024931,9]
[388974730,1759552256774,-500.0,0.00024931,2]
[388974731,1759552256784,-500.0,0.00024931,9]
[388974732,1759552256794,-500.0,0.00024931,9]
[388974733,1759552256803,-465.7064828,0.00024931,9]
[388974734,1759552256814,-612.99,0.00024931,9]
[388974735,1759552256823,-3787.08,0.00024931,9]
[388974736,1759552256833,-383.70124898,0.00024931,9]
[388974737,1759552256842,-500.0,0.00024931,9]
[388974738,1759552256852,-500.0,0.00024931,9]
[388974739,1759552256861,-701.04,0.00024931,9]
[388974740,1759552256870,-151.0,0.00024931,7]
[388974741,1759552256879,-500.0,0.00024931,9]
[388974742,1759552256888,-151.0,0.00024931,7]
[388974743,1759552256897,-151.0,0.00024931,7]
[388974744,1759552256907,-151.0,0.00024931,7]
[388974745,1759552256916,-178.54979957,0.00024931,9]
[388974746,1759552256926,-151.0,0.00024931,7]
[388974747,1759552256935,-151.0,0.00024931,7]
[388974748,1759552256945,-500.0,0.00024931,9]
[388974749,1759552256954,-500.0,0.00024931,9]
[388974750,1759552256963,-500.0,0.00024931,9]
[388974751,1759552256973,-853.01,0.00024931,9]
[388974752,1759552256983,-500.0,0.00024931,9]
[388974753,1759552256992,-500.0,0.00024931,9]
[388974754,1759552257002,-500.0,0.00024931,9]
[388974755,1759552257011,-500.0,0.00024931,9]
[388974756,1759552257020,-500.0,0.00024931,9]
[388974757,1759552257031,-500.0,0.00024931,9]
[388974758,1759552257039,-500.0,0.00024931,9]
[388974759,1759552257049,-500.0,0.00024931,9]
[388974760,1759552257058,-1503.56,0.00024931,9]
[388974761,1759552257067,-1125.42,0.00024931,9]
[388974762,1759552257077,-500.0,0.00024931,9]
[388974763,1759552257088,-500.0,0.00024931,9]
[388974764,1759552257097,-500.0,0.00024931,9]
[388974765,1759552257107,-645.58,0.00024931,9]
[388974766,1759552257116,-823.91,0.00024931,9]
[388974767,1759552257125,-1190.27,0.00024931,9]
[388974768,1759552257135,-500.0,0.00024931,9]
[388974769,1759552257146,-500.0,0.00024931,9]
[388974770,1759552257155,-610.13,0.00024931,9]
[388974771,1759552257164,-533.24,0.00024931,9]
[388974772,1759552257174,-500.0,0.00024931,9]
[388974773,1759552257183,-151.0,0.00024931,7]
[388974774,1759552257192,-180.099124,0.00024931,7]
[388974775,1759552257202,-1441.78,0.00024931,9]
[388974776,1759552257211,-578.23,0.00024931,9]
[388974777,1759552257221,-2034.55,0.00024931,9]
[388974778,1759552257231,-500.0,0.00024931,9]
[388974779,1759552257240,-500.0,0.00024931,9]
[388974780,1759552257249,-1400.04,0.00024931,9]
[388974781,1759552257259,-151.0,0.00024931,7]
[388974782,1759552257268,-151.0,0.00024931,7]
[388974783,1759552257278,-151.0,0.00024931,7]
[388974784,1759552257288,-151.0,0.00024931,7]
[388974785,1759552257297,-151.0,0.00024931,7]
[388974786,1759552257307,-151.0,0.00024931,7]
[388974787,1759552257316,-151.0,0.00024931,7]
[388974788,1759552257327,-151.0,0.00024931,7]
[388974789,1759552257337,-151.0,0.00024931,7]
[388974790,1759552257349,-151.0,0.00024931,7]
[388974791,1759552257360,-171.982924,0.00024931,7]
[388974792,1759552257370,-184.716019,0.00024931,7]
[388974793,1759552257380,-500.0,0.00024931,9]
[388974794,1759552257391,-500.0,0.00024931,9]
[388974795,1759552257400,-1924.79,0.00024931,9]
[388974796,1759552257409,-1656.76,0.00024931,9]
[388974797,1759552257418,-500.0,0.00024931,9]
[388974798,1759552257427,-389.46762912,0.00024931,9]
[388974799,1759552257436,-500.0,0.00024931,9]
[388974800,1759552257445,-500.0,0.00024931,9]
[388974801,1759552257454,-322.83737882,0.00024931,9]
[388974802,1759552257465,-500.0,0.00024931,9]
[388974803,1759552257476,-500.0,0.00024931,9]
[388974804,1759552257534,-500.0,0.00024931,9]
[388974805,1759552257543,-500.0,0.00024931,9]
[388974806,1759552257551,-500.0,0.00024931,9]
[388974807,1759552257560,-1981.39,0.00024931,9]
[388974808,1759552257569,-774.29,0.00024931,9]
[388974809,1759552257578,-827.72,0.00024931,9]
[388974810,1759552257587,-2166.99,0.00024931,9]
[388974811,1759552257597,-771.59,0.00024931,9]
[388974812,1759552257606,-562.88,0.00024931,9]
[388974813,1759552257614,-500.0,0.00024931,9]
[388974814,1759552257623,-4064.82,0.00024931,9]
[388974815,1759552257632,-4016.92,0.00024931,9]
[388974816,1759552257641,-579.85305113,0.00024931,9]
[388974817,1759552257650,-500.0,0.00024931,9]
[388974818,1759552257659,-500.0,0.00024931,9]
[388974819,1759552257669,-500.0,0.00024931,9]
[388974820,1759552257678,-1537.81,0.00024931,9]
[388974821,1759552257687,-500.0,0.00024931,9]
[388974822,1759552257696,-500.0,0.00024931,9]
[388974823,1759552257705,-151.0,0.00024931,7]
[388974824,1759552257714,-151.0,0.00024931,7]
[388974825,1759552257723,-151.0,0.00024931,7]
[388974826,1759552257732,-151.0,0.00024931,7]
[388974827,1759552257742,-500.0,0.00024931,9]
[388974828,1759552257751,-500.0,0.00024931,9]
[388974829,1759552257760,-244.882701,0.00024931,7]
[388974830,1759552257769,-151.0,0.00024931,7]
[388974831,1759552257779,-176.597648,0.00024931,7]
[388974832,1759552257789,-484.87642383,0.00024931,9]
[388974833,1759552257799,-511.34,0.00024931,9]
[388974834,1759552257808,-209.510792,0.00024931,7]
[388974835,1759552257817,-500.0,0.00024931,9]
[388974836,1759552257826,-209.510792,0.00024931,7]
[388974837,1759552257836,-522.15,0.00024931,9]
[388974838,1759552257847,-209.510792,0.00024931,7]
[388974839,1759552257855,-151.0,0.00024931,7]
[388974840,1759552257865,-209.510792,0.00024931,7]
[388974841,1759552257875,-151.0,0.00024931,7]
[388974842,1759552257884,-500.0,0.00024931,9]
[388974843,1759552257894,-209.510792,0.00024931,7]
[388974844,1759552257904,-151.0,0.00024931,7]
[388974845,1759552257913,-209.510792,0.00024931,7]
[388974846,1759552257922,-151.0,0.00024931,7]
[388974847,1759552257931,-209.510792,0.00024931,7]
[388974848,1759552257940,-295.542176,0.00024931,7]
[388974849,1759552257950,-209.510783,0.00024931,7]
[388974850,1759552257959,-500.0,0.00024931,9]
[388974851,1759552257969,-500.0,0.00024931,9]
[388974852,1759552257978,-463.65531702,0.00024931,9]
[388974853,1759552257987,-4304.15,0.00024931,9]
[388974854,1759552257996,-500.0,0.00024931,9]
[388974855,1759552258005,-576.56,0.00024931,9]
[388974856,1759552258014,-500.0,0.00024931,9]
[388974857,1759552258023,-2200.51,0.00024931,9]
[388974858,1759552258032,-500.0,0.00024931,9]
[388974859,1759552258041,-500.0,0.00024931,9]
[388974860,1759552258050,-151.0,0.00024931,7]
[388974861,1759552258059,-151.0,0.00024931,7]
[388974862,1759552258070,-2562.74,0.00024931,9]
[388974863,1759552258085,-500.0,0.00024931,9]
[388974864,1759552258095,-444.45646841,0.00024931,9]
[388974865,1759552258104,-500.0,0.00024931,9]
[388974866,1759552258113,-500.0,0.00024931,9]
[388974867,1759552258124,-832.05,0.00024931,9]
[388974868,1759552258133,-500.0,0.00024931,9]
[388974869,1759552258142,-861.85,0.00024931,9]
[388974870,1759552258151,-500.0,0.00024931,9]
[388974871,1759552258161,-500.0,0.00024931,7]
[388974872,1759552258170,-500.0,0.00024931,9]
[388974873,1759552258179,-500.0,0.00024931,9]
[388974874,1759552258188,-500.0,0.00024931,9]
[388974875,1759552258197,-500.0,0.00024931,9]
[388974876,1759552258206,-500.0,0.00024931,9]
[388974877,1759552258215,-500.0,0.00024931,9]
[388974878,1759552258224,-500.0,0.00024931,9]
[388974879,1759552258233,-1182.22,0.00024931,9]
[388974880,1759552258242,-500.0,0.00024931,9]
[388974881,1759552258252,-461.55028194,0.00024931,9]
[388974882,1759552258260,-500.0,0.00024931,9]
[388974883,1759552258269,-500.0,0.00024931,9]
[388974884,1759552258278,-1139.13,0.00024931,9]
[388974885,1759552258287,-500.0,0.00024931,9]
[388974886,1759552258296,-500.0,0.00024931,9]
[388974887,1759552258306,-2051.75,0.00024931,9]
[388974888,1759552258314,-500.0,0.00024931,9]
[388974889,1759552258323,-546.58,0.00024931,9]
[388974890,1759552258332,-1259.4,0.00024931,9]
[388974891,1759552258341,-506.135936,0.00024931,7]
[388974892,1759552258350,-500.0,0.00024931,9]
[388974893,1759552258359,-506.135936,0.00024931,7]
[388974894,1759552258368,-813.68,0.00024931,9]
[388974895,1759552258377,-500.0,0.00024931,9]
[388974896,1759552258387,-506.135936,0.00024931,7]
[388974897,1759552258395,-506.135936,0.00024931,7]
[388974898,1759552258405,-506.135936,0.00024931,7]
[388974899,1759552258414,-500.0,0.00024931,9]
[388974900,1759552258423,-506.135936,0.00024931,7]
[388974901,1759552258432,-506.135936,0.00024931,7]
[388974902,1759552258441,-506.135939,0.00024931,7]
[388974903,1759552258450,-500.0,0.00024931,9]
[388974904,1759552258459,-500.0,0.00024931,9]
[388974905,1759552258468,-151.0,0.00024931,7]
[388974906,1759552258476,-151.0,0.00024931,7]
[388974907,1759552258486,-556.05,0.00024931,9]
[388974908,1759552258495,-1405.7,0.00024931,9]
[388974909,1759552258503,-151.0,0.00024931,7]
[388974910,1759552258512,-500.0,0.00024931,9]
[388974911,1759552258521,-151.0,0.00024931,7]
[388974912,1759552258530,-3066.37,0.00024931,9]
[388974913,1759552258539,-500.0,0.00024931,9]
[388974914,1759552258548,-151.0,0.00024931,7]
[388974915,1759552258557,-151.0,0.00024931,7]
[388974916,1759552258566,-500.0,0.00024931,9]
[388974917,1759552258574,-151.0,0.00024931,7]
[388974918,1759552258583,-151.0,0.00024931,7]
[388974919,1759552258593,-151.0,0.00024931,7]
[388974920,1759552258604,-151.0,0.00024931,7]
[388974921,1759552258613,-171.882503,0.00024931,7]
[388974922,1759552258622,-500.0,0.00024931,9]
[388974923,1759552258631,-500.0,0.00024931,9]
[388974924,1759552258640,-2556.15,0.00024931,9]
[388974925,1759552258650,-634.95716363,0.00024931,9]
[388974926,1759552258660,-151.0,0.00024931,7]
[388974927,1759552258673,-151.0,0.00024931,7]
[388974928,1759552258684,-500.0,0.00024931,9]
[388974929,1759552258699,-151.0,0.00024931,7]
[388974930,1759552258708,-1980.87,0.00024931,9]
[388974931,1759552258718,-151.0,0.00024931,7]